bitfinex-derivatives/quotes_ETHF0:USTF0_20240915
["timestamp","ask_amount","ask_price","bid_price","bid_amount"]
[1726411025619,5.71834,2408.2,2408.1,2.86071997]
[1726411025816,5.71834,2408.2,2408.0,1.6316414]
[1726411025817,0.41516,2408.1,2408.0,1.08768085]
[1726411026021,3.65516,2408.1,2408.0,1.08768085]
[1726411026915,0.41517,2408.0,2407.9,1.08768085]
[1726411027310,4.56797,2408.0,2407.9,1.08768085]
[1726411027920,7.77577,2408.0,2407.9,1.08768085]
[1726411028110,0.41519,2407.9,2407.8,1.08768085]
[1726411028311,8.43078,2407.9,2407.4,1.6316414]
[1726411028537,0.41523,2407.7,2407.5,3.40182948]
[1726411028715,0.41523,2407.7,2407.6,1.77018808]
[1726411028915,0.41523,2407.7,2407.6,3.40182948]
[1726411029219,3.24,2407.7,2407.6,3.4017381]
[1726411029413,3.24,2407.7,2407.3,5.92701618]
[1726411029414,0.41524,2407.6,2407.5,1.6316414]
[1726411029620,3.65524,2407.6,2407.5,3.40182434]
[1726411029810,3.65524,2407.6,2407.1,2.71921618]
[1726411029811,0.41526,2407.5,2407.4,1.6316414]
[1726411030123,0.41526,2407.5,2407.4,3.40186443]
[1726411030518,0.41526,2407.5,2407.4,1.77022303]
[1726411030519,4.56886,2407.5,2407.4,1.77022303]
[1726411030821,0.41528,2407.4,2407.2,1.6316414]
[1726411031023,4.43058,2407.4,2407.3,1.77015043]
[1726411031524,4.43058,2407.4,2407.2,1.6316414]
[1726411031721,4.43058,2407.4,2407.3,1.76991997]
[1726411032227,0.3828,2407.6,2407.3,1.76991997]
[1726411032228,0.41526,2407.6,2407.3,3.40156137]
[1726411032417,0.41526,2407.6,2407.4,2.54541997]
[1726411032621,0.41526,2407.6,2407.4,0.7755]
[1726411033119,0.41526,2407.6,2407.4,2.4071414]
[1726411033619,3.24,2407.7,2407.4,2.4071414]
[1726411033927,1.1679,2407.9,2407.4,2.4071414]
[1726411033928,3.6284,2407.9,2407.6,1.6316414]
[1726411034720,3.2078,2408.0,2407.7,0.41522]
[1726411034925,3.2078,2408.0,2407.8,0.7801]
[1726411035329,3.2078,2408.0,2407.9,0.3866]
[1726411038925,3.2078,2408.0,2407.9,2.15614093]
[1726411039233,3.2078,2408.0,2407.9,0.3866]
[1726411045436,3.2078,2408.0,2407.7,1.6316414]
[1726411045632,3.6238,2408.0,2407.8,1.76963441]
[1726411045832,3.6238,2408.0,2407.7,2.0468614]
[1726411046033,3.6238,2408.0,2407.8,1.76963518]
[1726411046334,3.6238,2408.0,2407.8,1.6316414]
[1726411047236,3.24,2407.9,2407.8,1.6316414]
[1726411047432,3.24,2407.9,2407.7,1.6316414]
[1726411048326,3.24,2407.9,2407.8,1.76962831]
[1726411048525,3.24,2407.9,2407.8,3.40126971]
[1726411049433,3.24,2407.9,2407.8,1.76962831]
[1726411051139,3.24,2407.9,2407.8,3.40126971]
[1726411052035,1.5,2407.9,2407.8,3.40126971]
[1726411055036,1.5,2407.9,2407.8,3.40145163]
[1726411055633,0.097,2408.3,2407.8,7.55425163]
[1726411055940,1.5,2408.4,2408.0,2.0468014]
[1726411056139,1.5,2408.4,2408.1,3.81955163]
[1726411056339,3.62291,2408.4,2408.1,2.0497414]
[1726411056536,1.5,2408.2,2408.1,2.0497414]
[1726411056733,1.5,2408.2,2408.1,3.81942798]
[1726411059437,1.5,2408.2,2408.1,2.0497414]
[1726411059738,1.5,2408.2,2408.1,3.81938242]
[1726411061342,1.5,2408.2,2408.1,2.18774102]
[1726411061741,1.5,2408.2,2408.1,3.81938242]
[1726411062454,1.5,2408.2,2408.1,2.18774102]
[1726411063848,1.5,2408.2,2408.1,3.81938242]
[1726411064846,1.5,2408.2,2408.1,2.18774102]
[1726411066345,2.3323,2408.2,2408.1,2.18774102]
[1726411066550,2.3323,2408.2,2408.1,1.76964102]
[1726411066851,2.3323,2408.2,2408.1,1.76943012]
[1726411067047,2.3323,2408.2,2408.0,1.6316414]
[1726411068652,0.8323,2408.2,2408.0,1.6316414]
[1726411068948,2.32896,2408.1,2407.9,2.4471414]
[1726411069647,2.32896,2408.1,2408.0,1.76946245]
[1726411070244,2.32896,2408.1,2408.0,3.40110385]
[1726411070747,9.2744,2408.1,2407.8,1.6316414]
[1726411070944,1.5,2407.9,2407.8,1.6316414]
[1726411071244,1.91519,2407.9,2407.8,3.41942928]
[1726411072149,1.5,2407.9,2407.8,3.41942928]
[1726411073345,1.5,2407.9,2407.8,1.6316414]
[1726411073563,1.5,2407.9,2407.8,3.41940968]
[1726411075647,1.91519,2407.9,2407.8,3.41940968]
[1726411077353,1.91519,2407.9,2407.8,3.41999578]
[1726411077552,1.91519,2407.9,2407.8,3.42002637]
[1726411077944,1.91519,2407.9,2407.8,1.63225809]
[1726411078149,1.91519,2407.9,2407.8,3.42110601]
[1726411078351,1.91519,2407.9,2407.8,1.78884792]
[1726411078747,1.91519,2407.9,2407.8,3.96422086]
[1726411078946,1.91519,2407.9,2407.8,1.78884792]
[1726411079341,1.91519,2407.9,2407.8,3.96422086]
[1726411079547,1.91519,2407.9,2407.8,1.78884792]
[1726411080048,1.91519,2407.9,2407.8,3.96422086]
[1726411082755,0.41519,2407.9,2407.8,3.96422086]
[1726411082950,1.91519,2407.9,2407.8,3.42204401]
[1726411083156,2.30759,2407.9,2407.8,3.42204401]
[1726411085957,2.30759,2407.9,2407.8,3.42283013]
[1726411087055,1.91519,2407.9,2407.8,3.42283013]
[1726411087446,0.41518,2408.0,2407.8,1.78963404]
[1726411087756,0.41518,2408.0,2407.9,4.25358855]
[1726411087955,0.41518,2408.0,2407.9,2.62073404]
[1726411088157,0.41518,2408.0,2407.9,4.25354926]
[1726411092462,4.56798,2408.0,2407.9,3.42244926]
[1726411092663,4.95978,2408.0,2407.9,1.78963404]
[1726411093054,4.95978,2408.0,2407.9,3.42244926]
[1726411093250,4.95978,2408.0,2407.9,1.78963404]
[1726411093463,0.41519,2407.9,2407.8,1.63281522]
[1726411093657,6.06799,2407.9,2407.8,3.42242312]
[1726411093858,6.06799,2407.9,2407.8,1.7896079]
[1726411094762,6.06799,2407.9,2407.8,3.42242312]
[1726411095767,6.06799,2407.9,2407.8,1.7896079]
[1726411096264,6.06799,2407.9,2407.8,3.42242312]
[1726411097260,6.06799,2407.9,2407.8,3.84532312]
[1726411098968,6.06799,2407.9,2407.8,1.7896079]
[1726411099270,0.41521,2407.8,2407.7,1.63281522]
[1726411099465,3.62301,2407.8,2407.7,3.8354907]
[1726411099865,4.41091,2407.8,2407.7,2.20264865]
[1726411100870,1.20311,2407.8,2407.7,2.20264865]
[1726411101072,4.41091,2407.8,2407.7,2.20264865]
[1726411101371,1.20311,2407.8,2407.7,0.4133]
[1726411101577,4.41091,2407.8,2407.7,0.4133]
[1726411101877,1.20311,2407.8,2407.7,0.4133]
[1726411102169,4.41091,2407.8,2407.7,0.4133]
[1726411103068,4.41091,2407.8,2407.6,1.63281522]
[1726411103371,1.91523,2407.7,2407.6,1.63281522]
[1726411103579,1.91523,2407.7,2407.6,1.78907152]
[1726411103783,1.91523,2407.7,2407.6,3.42188674]
[1726411104577,1.91523,2407.7,2407.6,1.78905334]
[1726411105083,1.91523,2407.7,2407.6,3.42186856]
[1726411109086,1.91523,2407.7,2407.6,3.4219106]
[1726411111687,1.91523,2407.7,2407.6,3.42185782]
[1726411111887,1.91523,2407.7,2407.6,1.78909538]
[1726411112184,1.91523,2407.7,2407.6,3.42187827]
[1726411112378,1.91523,2407.7,2407.6,1.78909538]
[1726411112783,1.91523,2407.7,2407.6,3.42204678]
[1726411113574,1.91523,2407.7,2407.6,3.42213962]
[1726411113779,1.91523,2407.7,2407.6,3.42273662]
[1726411113982,1.91523,2407.7,2407.6,1.78969238]
[1726411114375,1.91523,2407.7,2407.6,3.42274276]
[1726411117286,3.5194832,2408.2,2407.6,11.69864751]
[1726411117493,3.5194832,2408.2,2407.8,1.63331806]
[1726411117494,1.91518,2408.0,2407.8,1.63331806]
[1726411117689,1.5,2408.0,2407.9,0.8245]
[1726411117890,1.5,2408.0,2407.9,1.2098]
[1726411119395,1.5,2408.0,2407.9,4.63312898]
[1726411120094,1.91517,2408.0,2407.9,4.63312898]
[1726411120295,1.91517,2408.0,2407.9,2.99981092]
[1726411120501,1.5,2408.0,2407.9,4.63308549]
[1726411121097,1.5,2408.0,2407.9,2.99981092]
[1726411121591,1.5,2408.0,2407.9,4.63307698]
[1726411122594,1.5,2408.0,2407.9,2.99981092]
[1726411122791,1.5,2408.0,2407.9,4.63306699]
[1726411122991,1.5,2408.0,2407.9,2.99981092]
[1726411123495,1.5,2408.0,2407.9,4.63312018]
[1726411127703,1.5,2408.0,2407.9,2.84310926]
[1726411127905,1.5,2408.0,2407.9,4.63308396]
[1726411130601,1.5,2408.0,2407.9,2.9997747]
[1726411132203,1.5,2408.0,2407.9,4.63289809]
[1726411132395,1.5,2408.0,2407.9,4.63276914]
[1726411132997,1.5,2408.0,2407.9,2.99964575]
[1726411134399,1.91517,2408.0,2407.9,3.42289228]
[1726411134600,0.41519,2407.9,2407.8,1.63304653]
[1726411134791,5.12299,2407.9,2407.8,3.42290791]
[1726411134995,9.27579,2407.9,2407.8,3.42290791]
[1726411139800,5.12299,2407.9,2407.8,3.42290791]
[1726411140904,5.12299,2407.9,2407.8,3.42304942]
[1726411142108,1.91519,2407.9,2407.8,3.42304942]
[1726411142310,5.12299,2407.9,2407.8,3.42304942]
[1726411142504,0.41518,2408.0,2407.8,3.42304942]
[1726411142703,1.5,2408.0,2407.9,1.79000362]
[1726411143002,1.5,2408.0,2407.9,3.42305015]
[1726411143205,1.5,2408.0,2407.9,1.79000362]
[1726411143407,1.5,2408.0,2407.9,3.96537656]
[1726411143806,1.5,2408.0,2407.9,7.54506337]
[1726411144214,1.5,2408.0,2407.9,3.96537656]
[1726411145010,1.5,2408.0,2407.9,2.17537294]
[1726411145314,1.5,2408.0,2407.9,3.96507175]
[1726411149007,1.5,2408.0,2407.9,7.54394917]
[1726411149600,1.5,2408.0,2407.9,2.17537294]
[1726411149909,1.5,2408.0,2407.9,7.54357106]
[1726411150307,1.5,2408.0,2407.9,3.96477231]
[1726411151005,1.5,2408.0,2407.9,7.54357188]
[1726411151305,1.5,2408.0,2407.9,3.96477231]
[1726411152100,1.5,2408.0,2407.9,1.78939937]
[1726411152329,1.91517,2408.0,2407.9,1.78939937]
[1726411152616,6.06797,2408.0,2407.9,4.51095782]
[1726411152805,6.48777,2408.0,2407.9,3.42235404]
[1726411153000,2.33497,2408.0,2407.9,2.87801351]
[1726411154210,2.33497,2408.0,2407.9,1.08861414]
[1726411155008,2.33497,2408.0,2407.9,2.87822972]
[1726411155208,5.54277,2408.0,2407.9,2.87822972]
[1726411157217,5.54277,2408.0,2407.9,1.78961558]
[1726411157409,1.91517,2408.0,2407.9,3.42257025]
[1726411158423,1.5,2408.0,2407.9,3.42257025]
[1726411158721,1.91517,2408.1,2407.9,3.42257025]
[1726411158926,1.91517,2408.1,2408.0,3.67871803]
[1726411159111,1.91517,2408.1,2408.0,4.11023689]
[1726411159112,1.5,2408.1,2408.0,4.11023689]
[1726411159518,1.5,2408.1,2408.0,4.65428911]
[1726411160019,1.5,2408.1,2408.0,4.65436329]
[1726411163722,1.5,2408.1,2408.0,4.65500334]
[1726411163918,1.91516,2408.1,2408.0,4.65500334]
[1726411166633,1.5,2408.1,2408.0,4.65500334]
[1726411170223,1.91516,2408.1,2408.0,3.42360334]
[1726411172928,1.91516,2408.1,2408.0,1.63295467]
[1726411173227,1.91516,2408.1,2408.0,3.42367362]
[1726411173727,1.91516,2408.1,2408.0,2.88010793]
[1726411174531,1.91516,2408.1,2408.0,3.42367362]
[1726411175332,1.5,2408.1,2408.0,3.42367362]
[1726411176428,1.91516,2408.1,2408.0,3.42367362]
[1726411177533,1.91516,2408.1,2408.0,3.42370253]
[1726411177738,4.0754,2408.3,2408.0,3.42370253]
[1726411177932,1.5,2408.1,2408.0,1.63295467]
[1726411178142,1.5,2408.1,2408.0,3.42369736]
[1726411178433,1.91516,2408.1,2408.0,3.42369736]
[1726411179226,1.5,2408.1,2408.0,3.42369736]
[1726411179429,3.2078,2408.3,2408.0,5.94354269]
[1726411179634,3.2078,2408.3,2408.1,8.39794533]
[1726411179835,3.2078,2408.3,2408.2,2.21104269]
[1726411180138,4.7078,2408.3,2408.2,2.21104269]
[1726411182135,4.7078,2408.3,2408.2,0.4203]
[1726411182440,4.7078,2408.3,2408.2,3.84365854]
[1726411185141,1.5,2408.3,2408.2,3.84365854]
[1726411185336,1.5,2408.3,2408.2,4.385778]
[1726411185739,1.5,2408.3,2408.2,2.21040506]
[1726411186949,1.5,2408.3,2408.2,2.20973155]
[1726411190246,1.5,2408.3,2408.2,3.84210527]
[1726411193342,1.91512,2408.3,2408.2,3.84210527]
[1726411193956,1.9329,2408.3,2408.2,3.84210527]
[1726411194255,1.5,2408.3,2408.2,3.84210527]
[1726411194842,1.91512,2408.4,2408.2,2.20973155]
[1726411195048,1.91512,2408.4,2408.3,2.87738999]
[1726411195248,1.91512,2408.4,2408.3,1.08795844]
[1726411199163,1.91512,2408.4,2408.3,2.87624235]
[1726411201059,1.5,2408.4,2408.3,2.87624235]
[1726411201262,1.5,2408.4,2408.3,1.08795844]
[1726411201461,1.9151,2408.4,2408.3,1.08795844]
[1726411202554,0.41514,2408.2,2408.1,1.08795844]
[1726411202764,0.41516,2408.1,2408.0,1.08795844]
[1726411202951,0.41521,2407.8,2407.7,1.08795844]
[1726411203152,5.12301,2407.8,2407.7,2.87637096]
[1726411203361,9.27661,2407.8,2407.7,2.87639712]
[1726411204155,9.27661,2407.8,2407.7,1.08795844]
[1726411205361,0.41523,2407.7,2407.6,1.08795844]
[1726411205556,0.85433,2407.7,2407.6,1.78815241]
[1726411205750,0.85433,2407.7,2407.6,3.42009006]
[1726411206358,0.85433,2407.7,2407.6,2.87593779]
[1726411208163,0.85433,2407.7,2407.6,2.87547337]
[1726411208366,0.85433,2407.7,2407.6,1.08778538]
[1726411209271,0.85433,2407.7,2407.6,2.87526085]
[1726411210469,0.85433,2407.7,2407.6,1.08778538]
[1726411211669,0.41524,2407.6,2407.5,1.08778538]
[1726411211963,0.41524,2407.6,2407.4,2.05093765]
[1726411211964,0.41526,2407.5,2407.4,1.50678538]
[1726411212166,1.91,2407.6,2407.4,2.20599884]
[1726411212374,1.5,2407.6,2407.4,1.50616148]
[1726411212564,1.5,2407.5,2407.4,1.50616148]
[1726411212769,1.5,2407.5,2407.4,3.29313851]
[1726411212966,1.5,2407.5,2407.4,3.29313916]
[1726411213168,1.5,2407.5,2407.4,1.50616148]
[1726411214175,1.91526,2407.5,2407.4,1.50616148]
[1726411214567,1.91526,2407.5,2407.4,0.419]
[1726411214966,1.91526,2407.5,2407.3,1.48816148]
[1726411215174,0.4116,2407.4,2407.3,1.48816148]
[1726411215676,0.41528,2407.4,2407.3,3.27444347]
[1726411215870,0.41528,2407.4,2407.3,3.2744388]
[1726411216069,5.12307,2407.5,2407.3,1.48816148]
[1726411216975,0.41528,2407.4,2407.3,1.48816148]
[1726411217174,4.7078,2407.5,2407.3,1.48816148]
[1726411217175,5.12307,2407.5,2407.3,1.48816148]
[1726411217376,5.12307,2407.5,2407.2,1.52286148]
[1726411217377,0.41529,2407.3,2407.2,1.52286148]
[1726411217566,0.41533,2407.1,2407.0,1.51166148]
[1726411217766,5.12313,2407.1,2406.9,1.52286148]
[1726411218368,5.12313,2407.1,2406.8,1.08716148]
[1726411218369,0.41536,2406.9,2406.8,1.08716148]
[1726411218672,0.41538,2406.8,2406.7,1.49346148]
[1726411218977,0.4154,2406.7,2406.6,1.51496148]
[1726411219168,1.9154,2406.7,2406.6,1.51496148]
[1726411219671,1.9154,2406.7,2406.6,0.4278]
[1726411219887,0.41547,2406.3,2406.2,1.08716148]
[1726411220178,1.5,2406.3,2406.1,0.4278]
[1726411221381,0.4155,2406.1,2406.0,0.8331]
[1726411221585,1.9155,2406.1,2406.0,0.8331]
[1726411221882,5.1233,2406.1,2406.0,0.8331]
[1726411223279,0.41554,2405.9,2405.8,0.3977]
[1726411223483,1.91554,2405.9,2405.8,0.3977]
[1726411224280,1.5,2405.9,2405.8,0.3977]
[1726411226580,1.91554,2405.9,2405.8,0.3977]
[1726411227085,1.5,2405.9,2405.8,0.3977]
[1726411228487,1.91554,2405.9,2405.8,0.3977]
[1726411231485,0.4403,2406.2,2405.8,0.3977]
[1726411231688,0.41551,2406.1,2405.8,3.6055]
[1726411231889,1.91551,2406.1,2405.8,3.6055]
[1726411232190,0.41551,2406.1,2405.8,3.6055]
[1726411232385,1.5,2405.9,2405.8,3.6055]
[1726411233485,1.5,2405.9,2405.8,0.3977]
[1726411248008,0.41547,2406.3,2405.8,10.5545]
[1726411248196,1.91547,2406.3,2406.0,3.2078]
[1726411248397,1.91547,2406.3,2406.1,0.4123]
[1726411248705,1.5,2406.3,2406.1,0.4123]
[1726411249004,1.91547,2406.3,2406.2,0.4116]
[1726411250004,1.5,2406.4,2406.2,0.82707]
[1726411250298,0.4947,2406.7,2406.3,3.62326]
[1726411250496,0.3977,2406.7,2406.3,4.04736]
[1726411250810,0.3977,2406.7,2406.4,0.41544]
[1726411251102,1.5,2406.8,2406.5,0.4293]
[1726411251310,1.5,2406.9,2406.6,3.6194]
[1726411251506,1.5,2406.9,2406.7,0.4386]
[1726411251710,0.85406,2407.0,2406.7,0.4386]
[1726411251711,1.5,2406.8,2406.7,0.4386]
[1726411252598,0.4387,2407.0,2406.7,0.85399]
[1726411252802,1.5,2407.1,2406.7,0.85399]
[1726411253003,1.5,2407.1,2406.9,3.2078]
[1726411253207,1.5,2407.0,2406.9,3.2078]
[1726411255614,1.5,2407.0,2406.7,0.85399]
[1726411255814,1.5,2407.0,2406.8,3.2078]
[1726411256612,1.5,2406.9,2406.7,3.6464]
[1726411260222,1.5,2406.9,2406.7,0.4386]
[1726411260926,1.5,2406.9,2406.7,0.854]
[1726411261126,1.5,2406.9,2406.7,0.4386]
[1726411262023,1.5,2406.9,2406.6,0.4116]
[1726411262218,1.5,2406.7,2406.6,0.4116]
[1726411263122,1.5,2406.7,2406.5,1.08716148]
[1726411263324,1.5,2406.7,2406.4,1.93911148]
[1726411263527,1.5,2406.5,2406.4,1.52366148]
[1726411263923,1.5,2406.5,2406.3,1.08716148]
[1726411264222,1.9308,2406.4,2406.3,1.08716148]
[1726411265424,1.9308,2406.4,2406.3,2.88742814]
[1726411265625,1.9308,2406.4,2406.3,1.08716148]
[1726411266219,1.9308,2406.4,2406.2,4.70906148]
[1726411266421,1.5,2406.5,2406.3,1.08716148]
[1726411266619,2.3306,2406.7,2406.3,1.08716148]
[1726411267125,1.5,2406.8,2406.3,2.58716148]
[1726411267332,2.0122,2406.9,2406.5,4.71038148]
[1726411267535,2.33057,2406.9,2406.6,1.2585]
[1726411268622,1.91538,2406.8,2406.6,1.2585]
[1726411269021,1.9154,2406.7,2406.5,3.2078]
[1726411269226,1.5,2406.7,2406.5,3.2078]
[1726411270031,4.0231,2406.8,2406.5,3.2078]
[1726411271234,4.02309,2406.8,2406.5,3.2078]
[1726411271427,0.4154,2406.7,2406.5,3.2078]
[1726411272236,4.02309,2406.8,2406.5,3.2078]
[1726411272538,3.24,2406.6,2406.3,1.94336148]
[1726411272723,3.24,2406.4,2406.3,0.4276]
[1726411281129,3.6497,2406.5,2406.3,0.4276]
[1726411281334,3.6497,2406.5,2406.3,1.51476148]
[1726411282636,3.24,2406.5,2406.3,1.93022148]
[1726411282837,3.24,2406.5,2406.3,5.13802148]
[1726411283234,3.24,2406.5,2406.4,1.08716148]
[1726411283434,3.24,2406.5,2406.3,5.13802148]
[1726411284437,0.41541,2406.7,2406.4,1.50261148]
[1726411284438,3.65541,2406.7,2406.4,1.50261148]
[1726411284639,3.65541,2406.7,2406.5,0.8195]
[1726411284640,3.24,2406.7,2406.5,0.8195]
[1726411286843,3.24,2406.7,2406.5,1.90666148]
[1726411287041,3.24,2406.7,2406.6,0.4347]
[1726411287348,3.6554,2406.7,2406.6,0.4347]
[1726411288347,3.24,2406.7,2406.6,0.4347]
[1726411289947,1.5,2406.7,2406.6,0.4347]
[1726411291036,1.5,2406.7,2406.6,1.52186148]
[1726411292349,1.9154,2406.7,2406.6,1.52186148]
[1726411292545,1.9154,2406.7,2406.5,1.48696148]
[1726411292744,5.1232,2406.7,2406.5,1.08716148]
[1726411294043,5.1232,2406.7,2406.6,1.08716148]
[1726411294445,5.1232,2406.7,2406.5,1.08716148]
[1726411295139,5.1232,2406.7,2406.6,1.08716148]
[1726411298250,5.1232,2406.7,2406.5,1.08716148]
[1726411299364,5.1232,2406.7,2406.6,1.08716148]
[1726411299943,0.41542,2406.6,2406.5,1.63193765]
[1726411300150,0.41542,2406.6,2406.5,3.43777416]
[1726411302952,0.78282,2406.6,2406.5,2.89508503]
[1726411303255,5.36082,2406.6,2406.5,1.80583651]
[1726411303451,5.36082,2406.6,2406.5,2.89517412]
[1726411303755,5.36082,2406.6,2406.5,2.89517237]
[1726411304155,5.36082,2406.6,2406.5,3.43777416]
[1726411304659,5.36082,2406.6,2406.5,2.89529325]
[1726411304847,5.36082,2406.6,2406.4,1.08945674]
[1726411304848,1.45402,2406.5,2406.4,1.08945674]
[1726411305046,1.45402,2406.5,2406.2,1.63193765]
[1726411305047,0.41547,2406.3,2406.2,1.63193765]
[1726411305253,5.12327,2406.3,2406.2,3.43928335]
[1726411305457,5.12327,2406.3,2406.1,1.63193765]
[1726411305458,0.41548,2406.2,2406.1,1.63193765]
[1726411305757,2.68758,2406.2,2406.1,3.43900159]
[1726411306058,6.84358,2406.2,2406.1,1.80706394]
[1726411306259,0.4155,2406.1,2406.0,1.63193765]
[1726411306450,0.4155,2406.1,2406.0,3.43400868]
[1726411306451,0.8114,2406.1,2406.0,3.43400868]
[1726411306756,4.9674,2406.1,2406.0,1.80207103]
[1726411308151,0.41552,2406.0,2405.9,1.63193765]
[1726411308357,1.91552,2406.0,2405.9,3.43375513]
[1726411308558,6.07152,2406.0,2405.9,3.43375513]
[1726411308763,1.91552,2406.0,2405.9,3.83565513]
[1726411308955,1.5,2406.0,2405.9,3.83565513]
[1726411309156,1.5,2406.0,2405.9,4.25035513]
[1726411309357,1.91552,2406.0,2405.9,4.25035513]
[1726411310057,0.41552,2406.0,2405.9,4.25035513]
[1726411311457,0.41552,2406.0,2405.9,2.61841748]
[1726411311857,0.41552,2406.0,2405.9,4.25035513]
[1726411312358,0.41552,2406.0,2405.9,2.61841748]
[1726411312960,0.41552,2406.0,2405.9,2.61687425]
[1726411316159,3.65551,2406.1,2405.9,2.61687425]
[1726411316455,3.24,2406.4,2405.9,2.44853765]
[1726411316658,3.24,2406.4,2406.0,6.63961254]
[1726411316857,0.41547,2406.3,2406.1,3.43181254]
[1726411317172,0.41547,2406.3,2406.1,2.04993765]
[1726411322462,3.65546,2406.4,2406.1,2.04993765]
[1726411322770,3.2078,2406.6,2406.2,1.79980616]
[1726411323065,3.24,2406.4,2406.3,3.86560641]
[1726411323263,3.65545,2406.4,2406.3,3.86560641]
[1726411323468,3.65545,2406.4,2406.3,2.23366876]
[1726411323966,3.65545,2406.4,2406.3,2.65286876]
[1726411324960,3.65545,2406.4,2406.3,0.8531]
[1726411325763,3.65545,2406.4,2406.3,2.65291708]
[1726411326065,3.65545,2406.4,2406.3,2.65292131]
[1726411326066,3.24,2406.4,2406.3,2.65292131]
[1726411326457,3.65545,2406.4,2406.3,0.8531]
[1726411326765,3.24,2406.4,2406.3,2.65292209]
[1726411326967,3.24,2406.4,2406.3,4.28485974]
[1726411328060,3.24,2406.4,2406.3,2.65292209]
[1726411328357,3.24,2406.4,2406.3,4.28485974]
[1726411330271,3.24,2406.4,2406.3,4.28490256]
[1726411330462,7.27892,2406.6,2406.3,4.28490256]
[1726411330663,3.2078,2406.6,2406.4,2.21531531]
[1726411330862,3.2078,2406.6,2406.4,0.83854]
[1726411332368,3.2078,2406.6,2406.5,0.41543]
[1726411333971,3.2078,2406.6,2406.4,2.47047765]
[1726411335175,3.24,2406.7,2406.4,2.47047765]
[1726411337380,3.6554,2406.7,2406.4,2.47047765]
[1726411339972,1.5,2406.5,2406.4,2.47047765]
[1726411340179,1.5,2406.5,2406.4,4.27073056]
[1726411340384,1.5,2406.5,2406.4,4.27073687]
[1726411343085,1.5,2406.5,2406.4,3.85529687]
[1726411343780,1.5,2406.5,2406.4,4.27074687]
[1726411344284,1.5,2406.5,2406.4,4.27072983]
[1726411345383,3.2078,2406.8,2406.7,0.4154]
[1726411345594,5.1261,2407.7,2406.9,0.41535]
[1726411345595,0.097,2407.2,2406.9,0.41535]
[1726411345882,2.33901,2407.3,2407.0,4.64690267]
[1726411346082,2.33901,2407.3,2407.1,1.80006711]
[1726411346280,0.41531,2407.2,2407.0,2.43149556]
[1726411347387,0.41531,2407.2,2407.0,0.7997]
[1726411348091,2.339,2407.3,2407.0,0.7997]
[1726411348881,0.839,2407.3,2407.0,0.7997]
[1726411349087,1.5,2407.1,2407.0,0.7997]
[1726411350183,1.5,2407.3,2407.0,4.9541]
[1726411350388,1.5,2407.1,2407.0,0.7997]
[1726411350989,1.5,2407.1,2407.0,4.9541]
[1726411351198,1.5,2407.1,2407.0,0.7997]
[1726411351398,1.5,2407.1,2407.0,4.9541]
[1726411352003,1.5,2407.1,2407.0,5.36945]
[1726411352903,1.5,2407.3,2407.1,0.41533]
[1726411353103,1.5,2407.3,2407.2,0.4319]
[1726411355609,1.5,2407.3,2407.0,0.7997]
[1726411355802,1.5,2407.3,2407.0,1.2008]
[1726411355803,1.919,2407.2,2407.0,1.2008]
[1726411357809,2.33431,2407.2,2407.0,1.2008]
[1726411361103,1.919,2407.2,2407.0,1.2008]
[1726411361311,3.2078,2407.5,2407.0,1.61614]
[1726411361510,1.5,2407.4,2407.0,2.83259556]
[1726411363508,1.5,2407.4,2407.2,0.41531]
[1726411364109,1.5,2407.4,2407.3,0.4051]
[1726411364713,1.91528,2407.4,2407.3,0.4051]
[1726411365005,1.91528,2407.4,2407.0,0.8031]
[1726411365006,1.5,2407.4,2407.0,0.8031]
[1726411365207,3.6266,2407.5,2407.0,1.62354]
[1726411365208,1.5,2407.2,2407.0,1.62354]
[1726411365414,1.5,2407.2,2407.0,1.2082]
[1726411366009,1.5,2407.2,2407.0,1.62354]
[1726411370116,1.91531,2407.2,2407.0,1.2082]
[1726411370319,1.5,2407.2,2407.0,1.62355]
[1726411373307,1.5,2407.3,2407.0,1.62355]
[1726411373510,1.5,2407.3,2407.0,3.25534556]
[1726411374311,1.9153,2407.3,2407.0,3.25534556]
[1726411375315,1.5,2407.3,2407.0,3.25534556]
[1726411375713,1.91529,2407.3,2407.0,3.25534556]
[1726411376723,1.5,2407.3,2407.0,3.25534556]
[1726411376915,1.5,2407.3,2407.1,0.41533]
[1726411377111,0.83407,2407.5,2407.2,3.2078]
[1726411377319,2.33407,2407.5,2407.3,0.3812]
[1726411377518,2.33407,2407.5,2407.4,0.3917]
[1726411378113,2.33406,2407.5,2407.4,0.3917]
[1726411379419,1.5,2407.6,2407.4,0.3917]
[1726411379608,1.5,2407.6,2407.4,0.7852]
[1726411380419,1.91524,2407.6,2407.4,0.7852]
[1726411381016,1.91526,2407.5,2407.4,0.3917]
[1726411381421,1.5,2407.5,2407.4,0.3917]
[1726411384320,1.91526,2407.5,2407.3,0.3812]
[1726411384625,2.30768,2407.4,2407.3,0.3812]
[1726411384822,1.8924,2407.4,2407.3,2.17922634]
[1726411386522,1.8924,2407.4,2407.3,3.8110219]
[1726411388226,2.30768,2407.4,2407.3,3.8110219]
[1726411389128,2.30768,2407.4,2407.3,3.81268581]
[1726411389331,2.30768,2407.4,2407.3,2.18089025]
[1726411390316,2.30768,2407.4,2407.3,4.35661767]
[1726411390519,2.30768,2407.4,2407.3,7.95895805]
[1726411390930,2.30768,2407.4,2407.3,4.35661767]
[1726411391426,2.30768,2407.4,2407.3,7.96097462]
[1726411393729,2.30768,2407.4,2407.3,6.16129]
[1726411393927,2.30768,2407.4,2407.3,7.96347129]
[1726411395824,0.80768,2407.4,2407.3,7.96347129]
[1726411396425,0.3924,2407.4,2407.3,5.78774387]
[1726411396624,0.41527,2407.5,2407.3,8.50696005]